bitfinex-derivatives/quotes_ETHF0:USTF0_20251117
["timestamp","ask_amount","ask_price","bid_price","bid_amount"]
[1763384305365,0.74216573,3186.6,3186.2,0.00361976]
[1763384305564,0.7375,3186.3,3186.2,0.00361976]
[1763384305766,0.2287,3186.3,3186.2,0.25181976]
[1763384305968,0.7375,3186.3,3186.2,0.00361976]
[1763384306458,0.7375,3186.3,3185.5,0.3936]
[1763384306459,0.2287,3185.6,3185.5,0.3936]
[1763384306658,0.50894,3185.5,3184.9,3.2078]
[1763384306860,0.2287,3185.3,3185.2,0.2482]
[1763384307661,0.74094511,3185.3,3185.2,0.00328388]
[1763384307863,0.74094511,3185.3,3185.2,0.25148388]
[1763384308369,3.94874511,3185.3,3185.2,0.00328388]
[1763384310957,3.94874511,3185.3,3185.2,0.25148388]
[1763384311169,3.43978511,3185.3,3185.2,0.25148388]
[1763384311370,0.00328511,3185.3,3185.2,0.25148388]
[1763384311868,0.51224511,3185.3,3185.2,0.25148388]
[1763384312065,0.74094511,3185.3,3185.2,0.25148388]
[1763384312661,3.94874511,3185.3,3185.2,0.25148388]
[1763384313067,3.94874511,3185.3,3185.2,0.00328388]
[1763384313867,0.74094511,3185.3,3185.2,0.00328388]
[1763384315172,3.94874511,3185.3,3185.2,0.00328388]
[1763384320574,0.85751,3185.0,3184.9,0.00470573]
[1763384321573,0.85751,3185.0,3184.9,0.00747753]
[1763384322874,0.73778,3184.6,3184.5,3.2078]
[1763384323770,0.73778,3184.6,3184.5,3.21002938]
[1763384326480,0.73778,3184.6,3184.5,3.60412938]
[1763384326778,0.73778,3184.6,3184.5,3.35592938]
[1763384326978,0.73778,3184.6,3184.5,3.21002938]
[1763384327575,0.2287,3184.6,3184.5,3.60412938]
[1763384327880,0.00470573,3184.9,3184.8,0.2482]
[1763384328681,0.23340573,3184.9,3184.8,0.2482]
[1763384328880,0.74243573,3184.9,3184.8,0.2482]
[1763384329281,0.00470573,3184.9,3184.8,0.2482]
[1763384335581,0.74353573,3184.9,3184.5,3.35592938]
[1763384335777,0.2298,3184.6,3184.5,3.35592938]
[1763384335975,0.2298,3184.6,3184.5,3.59492938]
[1763384336172,0.50906,3184.7,3184.6,0.239]
[1763384336373,0.73886,3184.7,3184.6,0.239]
[1763384337683,0.50908,3184.6,3184.5,0.00222938]
[1763384337983,1.24383932,3184.6,3184.5,0.00222938]
[1763384338284,0.74325562,3184.6,3184.1,0.239]
[1763384338587,1.38893562,3184.6,3184.5,0.1374]
[1763384339287,1.38893562,3184.6,3184.5,0.1414045]
[1763384340190,1.38893562,3184.6,3184.5,0.0040045]
[1763384340686,1.38893562,3184.6,3184.5,0.3804045]
[1763384340990,1.38893562,3184.6,3184.5,0.1414045]
[1763384342287,1.38893562,3184.6,3184.5,0.0040045]
[1763384342686,1.38893562,3184.6,3184.5,0.1414045]
[1763384342894,3.2078,3184.7,3184.6,0.239]
[1763384343790,0.51373573,3184.9,3184.8,0.239]
[1763384344494,0.65033573,3184.9,3184.5,0.1414045]
[1763384344693,0.65033573,3184.9,3184.8,0.239]
[1763384344885,0.00470573,3184.9,3184.8,0.239]
[1763384345385,0.65033573,3184.9,3184.8,0.239]
[1763384346795,0.14130573,3184.9,3184.8,0.239]
[1763384347495,0.14130573,3184.9,3184.5,0.1414045]
[1763384347797,0.27322122,3185.0,3184.5,0.1414045]
[1763384348699,0.27322122,3185.0,3184.9,0.239]
[1763384349089,0.27322122,3185.0,3184.5,0.1414045]
[1763384349898,0.50905,3184.8,3184.7,0.239]
[1763384350601,0.50905,3184.8,3184.5,0.1414045]
[1763384351304,0.00470573,3185.1,3185.0,0.3764]
[1763384354299,0.00470573,3185.1,3185.0,3.5842]
[1763384356604,0.51370573,3185.1,3185.0,3.5842]
[1763384356905,0.00470573,3185.1,3185.0,3.5842]
[1763384359004,0.51370573,3185.1,3185.0,3.5842]
[1763384359907,0.51370573,3185.1,3185.0,0.3764]
[1763384360509,0.00470573,3185.1,3185.0,0.3764]
[1763384361810,0.51370573,3185.1,3185.0,0.3764]
[1763384362911,0.00470573,3185.1,3185.0,0.3764]
[1763384363416,0.51370573,3185.1,3185.0,0.3764]
[1763384365111,0.00470573,3185.1,3185.0,0.3764]
[1763384365911,0.51370573,3185.1,3185.0,0.3764]
[1763384366510,0.00470573,3185.1,3185.0,0.3764]
[1763384367111,0.51370573,3185.1,3185.0,0.3764]
[1763384368112,0.51370573,3185.1,3185.0,0.3764]
[1763384370013,3.72150573,3185.1,3185.0,0.1374]
[1763384370504,0.50907,3184.7,3184.6,0.2446]
[1763384370712,3.71687,3184.7,3184.6,0.2446]
[1763384370905,4.46725248,3184.7,3184.6,0.2446]
[1763384371110,0.50908,3184.6,3184.5,0.1414045]
[1763384371508,1.25956711,3184.6,3184.5,0.1414045]
[1763384371715,3.71686,3184.7,3184.6,0.2446]
[1763384371910,4.4673861,3184.7,3184.6,0.2446]
[1763384372215,0.50908,3184.6,3184.5,0.1414045]
[1763384372416,1.2596061,3184.6,3184.5,0.1414045]
[1763384374809,1.2596061,3184.6,3184.5,0.0040045]
[1763384375311,1.2596061,3184.6,3184.5,4.5e-06]
[1763384375811,2.37519412,3184.6,3184.5,4.5e-06]
[1763384376212,7.2596061,3184.6,3184.5,4.5e-06]
[1763384377414,8.38049225,3184.6,3184.5,4.5e-06]
[1763384379322,7.2596061,3184.6,3184.5,4.5e-06]
[1763384381622,1.2596061,3184.6,3184.5,0.1464045]
[1763384382722,0.50908,3184.6,3184.5,0.1464045]
[1763384382921,1.25728172,3184.6,3184.5,0.1464045]
[1763384388023,1.25728172,3184.6,3184.5,4.5e-06]
[1763384391727,1.25728172,3184.6,3184.5,0.1388045]
[1763384396331,1.25728172,3184.6,3184.5,0.3723045]
[1763384399824,1.25728172,3184.6,3184.5,0.1388045]
[1763384400630,1.25728172,3184.6,3184.5,0.3723045]
[1763384405633,0.74820172,3184.6,3184.5,0.3723045]
[1763384407032,3.2078,3184.7,3184.6,0.2335]
[1763384407235,3.2078,3184.7,3184.5,0.1388045]
[1763384407236,3.72151573,3185.1,3185.0,0.1388]
[1763384407431,4.47496062,3185.1,3185.0,0.1388]
[1763384409033,3.96595062,3185.1,3185.0,0.3723]
[1763384409235,4.47495062,3185.1,3185.0,0.3723]
[1763384410247,3.96595062,3185.1,3185.0,0.3723]
[1763384410536,0.00328511,3185.3,3185.2,0.2335]
[1763384410739,0.00328511,3185.3,3185.2,3.4413]
[1763384410941,4.32868615,3185.9,3185.2,3.4413]
[1763384410942,3.2078,3185.9,3185.8,0.2335]
[1763384411349,0.51353573,3186.2,3185.6,3.2078]
[1763384411547,3.2078,3185.9,3185.5,0.1388]
[1763384411740,0.2252,3185.6,3185.5,0.3723]
[1763384411942,0.00470573,3186.2,3186.1,0.2335]
[1763384412145,0.23387364,3186.2,3186.1,0.2335]
[1763384412448,0.00867364,3186.2,3186.1,0.2335]
[1763384413144,0.2252,3185.9,3185.8,0.00470573]
[1763384413641,0.73407,3185.9,3185.8,0.00470573]
[1763384414154,0.2252,3185.9,3185.8,0.00470573]
[1763384414452,0.73407,3185.9,3185.8,0.23820573]
[1763384414658,0.73407,3185.9,3185.8,0.00470573]
[1763384414849,0.2252,3185.9,3185.8,0.23820573]
[1763384415052,0.00867364,3186.2,3185.8,0.23820573]
[1763384415451,0.2252,3185.9,3185.8,0.23820573]
[1763384415961,3.94187,3185.9,3185.8,0.00470573]
[1763384416147,3.433,3185.9,3185.8,0.00470573]
[1763384416354,3.94187,3185.9,3185.8,0.00470573]
[1763384416662,3.433,3185.9,3185.8,0.00470573]
[1763384416858,3.433,3185.9,3185.8,0.23820573]
[1763384417256,3.2078,3185.9,3185.8,0.23820573]
[1763384418149,3.4396,3185.9,3185.8,0.00470573]
[1763384418350,3.94847,3185.9,3185.8,0.24360573]
[1763384418548,0.00867364,3186.2,3186.1,0.2389]
[1763384419054,0.24047364,3186.2,3186.1,0.2389]
[1763384419254,0.00867364,3186.2,3186.1,0.2389]
[1763384420850,0.00867364,3186.2,3186.1,3.4467]
[1763384432269,0.00867364,3186.2,3186.1,0.2389]
[1763384432768,0.2356,3185.9,3185.8,0.24690573]
[1763384433669,0.74447,3185.9,3185.8,0.00470573]
[1763384434772,0.2356,3185.9,3185.8,0.24690573]
[1763384434965,0.00867364,3186.2,3185.8,0.24690573]
[1763384434966,0.24427364,3186.2,3186.1,0.2422]
[1763384435766,0.00867364,3186.2,3186.1,0.2422]
[1763384436162,0.24427364,3186.2,3186.1,0.2422]
[1763384436365,0.75309364,3186.2,3185.8,0.00470573]
[1763384436875,0.2356,3185.9,3185.8,0.24690573]
[1763384437472,3.95227,3185.9,3185.8,0.00470573]
[1763384437667,4.69591866,3185.9,3185.8,0.00470573]
[1763384441473,4.69591866,3185.9,3185.8,0.24690573]
[1763384442280,4.69591866,3185.9,3185.8,0.00470573]
[1763384443167,0.2356,3185.1,3185.0,0.381]
[1763384443373,0.2356,3184.9,3184.8,3.45]
[1763384444470,0.74463,3184.9,3184.8,3.45]
[1763384444876,0.2356,3184.9,3184.8,3.45]
[1763384445076,0.74463,3184.9,3184.8,3.45]
[1763384445373,3.2078,3185.4,3185.2,0.2422]
[1763384445374,0.50896,3185.3,3185.2,0.2422]
[1763384445571,0.97922422,3185.3,3185.2,0.2422]
[1763384445979,0.2356,3185.1,3185.0,0.2422]
[1763384446480,3.95235,3185.4,3185.3,0.2422]
[1763384446781,4.18687328,3185.4,3185.3,0.2422]
[1763384447387,4.18674639,3185.4,3185.3,0.2422]
[1763384447587,0.74451,3185.7,3185.6,0.2422]
[1763384447793,1.49167373,3185.7,3185.6,0.2422]
[1763384447988,0.98276373,3185.7,3185.6,0.2422]
[1763384448189,0.2356,3185.7,3185.6,0.2422]
[1763384449087,3.2078,3185.8,3185.7,0.2422]
[1763384449991,3.4434,3185.8,3185.7,0.2422]
[1763384450183,3.2078,3185.8,3185.7,0.2422]
[1763384451078,3.4434,3185.8,3185.7,0.2422]
[1763384451278,3.2078,3185.8,3185.7,0.2422]
[1763384452882,3.95228,3185.8,3185.7,0.2422]
[1763384453192,3.2078,3185.8,3185.7,0.2422]
[1763384454189,3.4468,3185.8,3185.7,0.2422]
[1763384454391,0.239,3185.6,3185.5,0.3773]
[1763384454895,3.95568,3185.8,3185.7,0.2296]
[1763384455295,3.95568,3185.8,3185.5,0.1477]
[1763384455296,0.239,3185.6,3185.5,0.3773]
[1763384457283,0.1451,3186.0,3185.2,3.2078]
[1763384457284,0.00867364,3186.2,3185.6,3.1384]
[1763384457488,0.00867364,3186.2,3186.1,3.2078]
[1763384458185,0.89401351,3187.0,3186.1,3.2078]
[1763384458393,0.239,3186.7,3186.6,3.2078]
[1763384459191,0.24172929,3186.7,3186.6,3.2078]
[1763384460590,0.00272929,3186.7,3186.6,3.2078]
[1763384461190,0.24172929,3186.7,3186.6,3.2078]
[1763384461598,0.00272929,3186.7,3186.6,3.2078]
[1763384462694,0.24172929,3186.7,3186.6,3.2078]
[1763384463094,0.00272929,3186.7,3186.6,3.2078]
[1763384466497,0.24172929,3186.7,3186.6,3.2078]
[1763384467097,0.00272929,3186.7,3186.6,3.2078]
[1763384468295,0.14980573,3187.0,3186.6,3.2078]
[1763384469200,0.15331727,3187.0,3186.6,3.2078]
[1763384469901,0.239,3186.7,3186.6,3.2078]
[1763384470798,0.74774,3186.7,3186.6,3.2078]
[1763384470996,0.239,3186.7,3186.6,3.2078]
[1763384471606,0.1451,3186.5,3186.3,0.00470573]
[1763384473803,0.74779,3186.4,3186.3,0.00470573]
[1763384474101,0.239,3186.4,3186.3,0.00470573]
[1763384478307,0.2469,3186.4,3186.3,0.00470573]
[1763384483908,0.2417,3186.4,3186.3,0.00470573]
[1763384488306,0.00990453,3186.5,3186.3,0.00470573]
[1763384488512,0.2417,3186.4,3186.3,0.00470573]
[1763384491010,0.2417,3186.4,3186.3,3.21250573]
[1763384491318,0.00990453,3186.5,3186.3,3.21250573]
[1763384492711,0.00990453,3186.5,3186.3,44.01250573]
[1763384495919,0.15331727,3187.0,3186.3,50.01250573]
[1763384496112,0.15331727,3187.0,3186.7,3.2078]
[1763384496311,1.26598615,3188.0,3186.8,2.25526568]
[1763384496312,0.1451,3188.0,3186.8,2.25526568]
[1763384496514,0.1451,3188.0,3187.4,3.2078]
[1763384497217,0.1451,3188.0,3187.4,6.3446]
[1763384497416,0.00470573,3187.8,3187.4,3.14048257]
[1763384497607,0.00470573,3187.8,3187.7,3.2078]
[1763384497810,0.1451,3188.0,3187.7,3.2078]
[1763384498022,0.1476,3188.5,3187.7,5.46306568]
[1763384498319,0.1476,3188.5,3188.4,3.2078]
[1763384498523,0.39250602,3188.5,3188.4,3.2078]
[1763384500518,0.15080602,3188.5,3188.4,3.2078]
[1763384500721,0.39250602,3188.5,3188.4,3.2078]
[1763384501919,0.2271,3188.2,3188.1,0.00470573]
[1763384502716,0.7356,3188.2,3188.1,0.00470573]
[1763384502925,0.2271,3188.2,3188.1,0.00470573]
[1763384503224,0.2271,3188.2,3188.1,0.22990573]
[1763384503628,0.00320602,3188.5,3188.1,0.22990573]
[1763384503820,0.23030602,3188.5,3188.4,0.2252]
[1763384504930,0.23030602,3188.5,3188.1,0.00470573]
[1763384506425,0.23030602,3188.5,3188.4,0.2252]
[1763384507331,0.23030602,3188.5,3188.1,0.00470573]
[1763384508740,0.00320602,3188.5,3188.4,0.2252]
[1763384509034,0.00320602,3188.5,3188.4,3.433]
[1763384514138,0.23000602,3188.5,3188.4,3.433]
[1763384516841,0.23000602,3188.5,3188.4,3.2078]
[1763384517038,0.2268,3188.2,3188.1,0.00470573]
[1763384517544,0.2268,3188.2,3188.1,0.24900573]
[1763384519147,0.2268,3188.2,3188.1,0.00470573]
[1763384519538,0.7353,3188.2,3188.1,0.00470573]
[1763384520034,0.7353,3188.2,3188.0,3.2078]
[1763384520035,0.73062,3188.1,3188.0,3.2078]
[1763384520239,0.50857,3187.9,3187.6,3.2078]
[1763384520438,0.50858,3187.7,3187.6,3.2078]
[1763384520643,0.5086,3187.6,3187.5,0.1437]
[1763384520940,0.50861,3187.5,3187.4,0.00368257]
[1763384521635,9.2078,3187.5,3186.5,0.1304]
[1763384521834,3.141,3188.4,3186.5,0.1304]
[1763384521835,0.50871,3186.9,3186.5,0.1304]
[1763384522031,0.50869,3187.0,3186.5,0.1304]
[1763384522340,3.71648,3187.1,3187.0,0.1464]
[1763384522643,3.71648,3187.1,3187.0,0.14965038]
[1763384525151,3.71648,3187.1,3187.0,0.00325038]
[1763384525344,0.50872,3186.8,3186.7,0.00470573]
[1763384526444,0.50872,3186.8,3186.7,0.00864677]
[1763384528450,9.1376,3186.8,3185.5,0.1464]
[1763384528751,3.2078,3186.6,3186.5,0.3907]
[1763384529052,3.71656,3186.6,3186.5,0.1464]
[1763384529553,3.71656,3186.6,3186.5,0.14967278]
[1763384531251,3.2078,3186.6,3186.5,0.14967278]
[1763384531550,3.71656,3186.6,3186.5,0.14967278]
[1763384532646,3.2078,3186.6,3186.5,0.14967278]
[1763384532843,3.71656,3186.6,3186.5,0.14967278]
[1763384533338,3.2078,3186.6,3186.2,0.00470573]
[1763384533545,0.5088,3186.3,3186.2,0.00470573]
[1763384534553,0.5088,3186.3,3186.2,0.00734027]
[1763384535355,0.50884,3186.1,3185.5,0.1464]
[1763384535650,0.50892,3185.6,3185.5,0.1464]
[1763384535846,3.71672,3185.6,3185.5,0.1464]
[1763384536342,0.50899,3185.1,3184.8,0.25628458]
[1763384536542,3.71679,3185.1,3184.4,3.2078]
[1763384536748,3.72042318,3185.1,3185.0,4.535e-05]
[1763384537750,3.21143318,3185.1,3185.0,0.37144535]
[1763384537952,0.00363318,3185.1,3185.0,0.37144535]
[1763384538549,3.2078,3185.5,3185.4,0.2312]
[1763384538758,0.50887,3185.9,3185.5,0.1402]
[1763384539558,0.51234078,3185.9,3185.5,0.1402]
[1763384539759,0.00347078,3185.9,3185.5,0.1402]
[1763384540258,0.50892,3185.6,3185.5,0.1402]
[1763384541858,0.00347078,3185.9,3185.5,0.1402]
[1763384542048,0.50888,3185.8,3185.5,0.1402]
[1763384542252,3.71672,3185.6,3185.5,0.1402]
[1763384542653,3.71672,3185.6,3185.0,0.14024535]
[1763384542654,3.2078,3185.6,3185.0,0.38534535]
[1763384542955,3.2078,3185.5,3185.4,0.2451]
[1763384543661,0.51235078,3185.9,3185.5,0.1361]
[1763384544166,0.51235078,3185.9,3185.8,0.2451]
[1763384544362,0.50889,3185.8,3185.5,0.1361]
[1763384545962,0.00347078,3185.9,3185.8,0.2451]
[1763384546349,0.51234078,3185.9,3185.5,0.1361]
[1763384546562,0.00347078,3185.9,3185.5,0.1361]
[1763384546761,0.51234078,3185.9,3185.5,0.1361]
[1763384547063,0.50889,3185.8,3185.5,0.1361]
[1763384547449,3.71672,3185.6,3185.5,0.1361]
[1763384549864,4.46139197,3185.6,3185.5,0.1361]
[1763384550962,3.71672,3185.6,3185.5,0.3812]
[1763384551164,4.46131772,3185.6,3185.5,0.3812]
[1763384551964,3.95239772,3185.6,3185.5,0.3812]
[1763384552368,3.2078,3185.6,3185.5,0.3812]
[1763384554062,0.00470573,3186.0,3185.8,0.2451]
[1763384554263,3.2078,3186.4,3185.5,9.3439]
[1763384554264,3.2078,3186.4,3186.3,0.2451]
[1763384554968,3.2078,3187.2,3186.7,0.2451]
[1763384555164,0.74076123,3187.1,3187.0,0.3812]
[1763384555665,3.21100552,3187.2,3187.1,0.2451]
[1763384555871,3.95184831,3187.2,3187.1,0.2451]
[1763384556367,3.21100552,3187.2,3187.1,0.2451]
[1763384556582,0.00320552,3187.2,3187.1,0.2451]
[1763384559570,0.00320552,3187.2,3187.1,3.4529]
[1763384560273,0.50851,3188.2,3187.7,0.2451]
[1763384560472,0.50851,3188.2,3188.0,0.1361]
[1763384560676,3.2078,3188.4,3188.0,0.1361]
[1763384560978,0.5085,3188.2,3188.0,0.1361]
[1763384561377,0.51217637,3188.2,3188.0,0.13931303]
[1763384561778,0.51217637,3188.2,3187.5,3.3439]
[1763384561779,0.00367637,3188.2,3187.5,3.3439]
[1763384562075,0.5086,3187.6,3187.5,0.1361]
[1763384562975,3.2078,3187.9,3187.0,3.3439]
[1763384563176,0.73872551,3187.8,3187.0,3.3439]
[1763384563667,0.50865,3187.3,3187.0,3.3439]
[1763384563979,0.50866,3187.3,3187.0,3.34765624]
[1763384564171,0.50863,3187.4,3187.0,3.34765624]
[1763384564371,0.5086,3187.6,3187.5,0.1361]
[1763384565680,0.50866,3187.2,3187.0,3.34765624]
[1763384565878,0.50868,3187.1,3187.0,3.34765624]
[1763384566076,0.50865,3187.3,3187.0,3.59275624]
[1763384566773,3.2078,3187.9,3187.5,0.1361]
[1763384566979,0.73805946,3187.8,3187.5,0.1361]
[1763384567579,0.5086,3187.6,3187.5,0.1361]
[1763384567781,1.24665946,3187.6,3187.5,0.1361]
[1763384569986,0.50868,3187.1,3187.0,3.34765624]
[1763384570677,0.50868,3187.1,3187.0,3.59275624]
[1763384570984,0.50866,3187.2,3187.0,3.59275624]
[1763384572084,0.50868,3187.1,3187.0,0.13985624]
[1763384579787,0.50868,3187.1,3187.0,0.37465624]
[1763384580591,3.2078,3187.4,3187.3,0.2348]
[1763384580791,1.12088615,3188.0,3187.8,0.2348]
[1763384580792,3.2078,3187.9,3187.8,0.2348]
[1763384582689,3.71635,3187.9,3187.8,0.2348]
[1763384583191,3.94823007,3187.9,3187.8,0.2348]
[1763384583587,4.45678007,3187.9,3187.8,0.2348]
[1763384584485,4.45678007,3187.9,3187.5,0.1388]
[1763384584694,0.50859,3187.7,3187.5,0.1388]
[1763384585194,0.5086,3187.6,3187.5,0.1388]
[1763384585594,0.50867,3187.2,3187.0,0.13985624]
[1763384585795,1.24885315,3187.1,3187.0,0.13985624]
[1763384586388,0.74017315,3187.1,3187.0,0.13985624]
[1763384586697,0.50868,3187.1,3187.0,0.13985624]
[1763384586890,1.24885315,3187.1,3187.0,0.13985624]
[1763384587293,1.24885315,3187.1,3187.0,0.00375624]
[1763384587593,0.74017315,3187.1,3186.0,0.1388]
[1763384587799,1.67667703,3187.3,3186.0,0.1388]
[1763384587800,0.5088,3186.3,3186.0,0.1388]
[1763384588293,3.2078,3186.5,3186.0,0.1388]
[1763384588501,0.5088,3186.3,3186.0,0.1388]
[1763384588698,0.50883,3186.2,3186.0,0.14235514]
[1763384588998,3.71664,3186.1,3186.0,0.14235514]
[1763384591699,3.2078,3186.1,3186.0,0.14235514]
[1763384591899,3.2078,3186.1,3186.0,0.37715514]
[1763384592393,3.71664,3186.1,3186.0,0.37715514]
[1763384592599,3.71664,3186.1,3186.0,0.14235514]
[1763384592798,3.2078,3186.1,3186.0,0.14235514]
[1763384593006,3.71664,3186.1,3186.0,0.14235514]
[1763384593486,3.2078,3186.1,3186.0,0.37715514]
[1763384593892,0.51348573,3186.5,3186.0,0.37715514]
[1763384593893,3.21250573,3186.5,3186.4,0.2348]
[1763384594604,3.21250573,3186.5,3186.0,0.14235514]
[1763384595102,3.21250573,3186.5,3186.4,0.2348]
[1763384595294,3.72127573,3186.5,3186.4,0.2348]
[1763384595794,0.50879,3186.4,3186.0,0.14235514]
[1763384596196,3.72127573,3186.5,3186.0,0.14235514]
[1763384596397,3.72127573,3186.5,3186.4,0.2348]
[1763384597105,0.5088,3186.4,3186.0,0.14235514]
[1763384597997,0.5088,3186.4,3186.3,0.2426]
[1763384598298,3.21250573,3186.5,3186.4,0.2426]
[1763384598703,0.50879,3186.4,3186.0,0.14235514]
[1763384602108,0.50883,3186.2,3186.0,0.14235514]
[1763384603612,0.50884,3186.1,3186.0,0.14235514]
[1763384604106,0.50884,3186.1,3185.0,0.1388]
[1763384604107,0.50892,3185.6,3185.0,3.3466]
[1763384604304,3.2078,3185.6,3185.0,3.3466]
[1763384604506,1.12088615,3186.2,3185.0,0.1388]
[1763384604507,0.50899,3185.1,3185.0,0.1388]
[1763384605106,0.51303459,3185.1,3185.0,0.14275134]
[1763384606718,0.00404459,3185.1,3185.0,0.38185134]
[1763384610702,0.51303459,3185.1,3185.0,0.14275134]
[1763384612217,0.00404459,3185.1,3185.0,0.38185134]
[1763384612516,0.00404459,3185.1,3185.0,0.14275134]
[1763384612517,0.51303459,3185.1,3185.0,0.14275134]
[1763384613016,0.00404459,3185.1,3185.0,0.38185134]
[1763384613214,3.2078,3185.3,3185.0,0.38185134]
[1763384613418,0.50899,3185.1,3185.0,0.38185134]
[1763384613613,0.50899,3185.1,3185.0,0.14275134]
[1763384614419,0.51235811,3185.1,3185.0,0.14275134]
[1763384614717,0.51235811,3185.1,3185.0,0.38185134]
[1763384616120,0.51235811,3185.1,3185.0,0.14275134]
[1763384616519,0.51235811,3185.1,3185.0,0.38185134]
[1763384618829,0.00336811,3185.1,3185.0,0.38185134]
[1763384620218,0.51235811,3185.1,3185.0,0.14275134]
[1763384621626,0.00336811,3185.1,3185.0,0.38185134]
[1763384621825,0.51235811,3185.1,3185.0,0.38185134]
[1763384622013,0.51235811,3185.1,3185.0,0.14275134]
[1763384623430,0.00336811,3185.1,3185.0,0.38185134]
[1763384624333,0.51235811,3185.1,3185.0,0.38185134]
[1763384624933,3.01954405,3185.3,3185.2,0.2391]
[1763384626025,3.02302625,3185.3,3185.2,0.2391]
[1763384626423,3.53198625,3185.3,3185.2,0.2391]
[1763384626627,0.50899,3185.1,3185.0,0.14275134]
[1763384627937,0.50898,3185.2,3185.1,0.2391]
[1763384630330,0.50898,3185.2,3185.0,0.14275134]
[1763384630535,0.50899,3185.1,3185.0,0.14275134]
[1763384631341,1.24438138,3185.1,3185.0,0.14275134]
[1763384633242,1.24438138,3185.1,3185.0,0.38185134]
[1763384634448,1.24438138,3185.1,3185.0,0.37855134]
[1763384634644,0.73539138,3185.1,3185.0,0.37855134]
[1763384634848,0.50899,3185.1,3185.0,0.37855134]
[1763384635146,0.73539138,3185.1,3185.0,0.37855134]
[1763384635350,1.24438138,3185.1,3185.0,0.37855134]
[1763384635939,0.73539138,3185.1,3185.0,0.37855134]
[1763384636134,3.02302625,3185.3,3185.2,0.2358]
[1763384636334,3.76021933,3185.3,3185.2,0.2358]
[1763384637239,4.26917933,3185.3,3185.2,0.2358]
[1763384637440,0.50899,3185.2,3185.0,0.14275134]
[1763384640352,0.50898,3185.2,3185.0,0.14275134]
[1763384640543,3.02302625,3185.3,3185.2,0.2358]
[1763384642946,3.53198625,3185.3,3185.2,0.2358]
[1763384643147,0.50899,3185.2,3185.0,0.14275134]
[1763384643338,0.50899,3185.1,3185.0,0.14275134]
[1763384643743,1.24577519,3185.1,3185.0,0.14275134]
[1763384644454,0.50907,3184.6,3184.5,0.1388]
[1763384644647,1.24585519,3184.6,3184.5,0.1388]
[1763384644954,3.2078,3184.7,3184.5,0.1388]
[1763384645145,0.73649786,3184.6,3184.2,3.2078]
[1763384645340,1.24556786,3184.6,3184.5,0.1357]
[1763384646458,0.73649786,3184.6,3184.5,0.3715]
[1763384646660,0.00470573,3184.9,3184.8,0.2358]
[1763384648255,5.73e-06,3184.9,3184.8,0.2358]
[1763384648752,0.0034822,3185.3,3185.2,0.2358]
[1763384648949,3.2078,3185.5,3185.4,0.2358]
[1763384649852,3.210437,3185.5,3185.4,0.2358]
[1763384651057,0.002637,3185.5,3185.4,0.2358]
[1763384655058,0.00470573,3185.8,3185.7,0.2358]
[1763384655563,0.00470573,3185.8,3185.5,0.1357]
[1763384655753,1.24872909,3185.8,3185.7,0.2358]
[1763384656061,0.00869293,3185.8,3185.7,0.2358]
[1763384656363,0.51757293,3185.8,3185.5,0.1357]
[1763384656557,0.5089,3185.7,3185.5,0.1357]
[1763384656753,0.51758293,3185.8,3185.5,0.1357]
[1763384656955,0.00869293,3185.8,3185.7,0.2358]
[1763384657258,0.00869293,3185.8,3185.5,0.1357]
[1763384657458,3.72537293,3185.8,3185.5,0.1357]
[1763384657877,0.50891,3185.7,3185.5,0.1357]
[1763384660058,0.50892,3185.6,3185.5,0.1357]
[1763384661369,0.50892,3185.6,3185.5,0.3617]
[1763384661867,0.50892,3185.6,3185.5,0.1357]
[1763384663569,1.24469533,3185.6,3185.5,0.1357]
[1763384665369,0.50892,3185.6,3185.5,0.3811]
[1763384665567,3.21649293,3185.8,3185.6,0.2454]
[1763384665568,0.5089,3185.7,3185.6,0.2454]
[1763384665867,0.50892,3185.6,3185.5,0.1357]
[1763384666169,1.24471818,3185.6,3185.5,0.1357]
[1763384666767,0.50892,3185.6,3185.5,0.1357]
[1763384667172,1.24462985,3185.6,3185.5,0.1357]
[1763384668164,1.24461926,3185.6,3185.5,0.1357]
[1763384668569,0.50898,3185.3,3185.0,0.1357]
[1763384668769,0.50899,3185.1,3185.0,0.1357]
[1763384668970,0.50898,3185.2,3185.0,0.3811]
[1763384669172,3.2078,3185.4,3185.0,0.1357]
[1763384669368,0.50899,3185.1,3185.0,0.3811]
[1763384669769,0.50898,3185.2,3185.1,0.2454]
[1763384670470,0.50899,3185.1,3185.0,0.1357]
[1763384670972,0.50899,3185.1,3185.0,0.3811]
[1763384671473,0.50899,3185.1,3185.0,0.1357]
[1763384672970,1.24396359,3185.1,3185.0,0.1357]
[1763384673372,0.50907,3184.6,3184.5,0.1357]
[1763384675475,1.24368046,3184.6,3184.5,0.1357]
[1763384676672,0.50912,3184.3,3184.2,0.00689762]
[1763384676878,3.71692,3184.3,3184.2,0.00689762]
[1763384677077,4.45129345,3184.3,3184.2,0.00689762]
[1763384679072,4.45129345,3184.3,3184.2,0.25229762]
[1763384679473,3.2078,3184.3,3184.2,0.25229762]
[1763384681688,0.50911,3184.4,3184.3,0.2454]
[1763384682289,0.50909,3184.6,3184.5,0.1365]
[1763384682584,3.2078,3184.7,3184.6,0.2454]
[1763384682987,0.50905,3184.8,3184.7,0.2454]
[1763384683584,3.2078,3185.1,3185.0,0.1365]
[1763384683789,3.94120165,3185.1,3185.0,0.1365]
[1763384684179,4.45019165,3185.1,3185.0,0.1365]
[1763384684585,3.71679,3185.1,3185.0,0.1365]
[1763384685990,3.71679,3185.1,3185.0,0.3819]
[1763384687394,3.71679,3185.1,3185.0,0.1365]
[1763384688285,0.00869293,3185.8,3185.7,0.2454]
[1763384688683,0.25039293,3185.8,3185.7,0.2454]
[1763384688893,0.1407,3186.0,3185.7,0.2454]
[1763384689193,0.2417,3185.8,3185.7,0.2454]
[1763384689392,0.3824,3186.0,3185.9,0.2454]
[1763384689794,0.00286859,3186.0,3185.9,3.4532]
[1763384696893,0.39186859,3186.0,3185.9,3.4532]
[1763384698598,0.39186859,3186.0,3185.9,3.2078]
[1763384699103,3.2078,3185.6,3183.9,1.15584624]
[1763384699397,3.1408,3183.9,3181.9,3.2078]
[1763384699596,4.50546069,3184.0,3181.7,0.09064158]